[Event "Early-Titled-Tuesday-Blitz-January-30-2024"]
[Site "Chess.com"]
[Date "2024.01.30"]
[Round "10"]
[White "Maftuna2303"]
[Black "MBA_CHESS_2021"]
[Result "1-0"]
[WhiteElo "2432"]
[BlackElo "2243"]
[TimeControl "180+1"]
[EndTime "10:00:56 PST"]
[Termination "Maftuna2303 won on time"]

1. e4 {[%clk 0:03:00.9]} 1... b6 {[%clk 0:02:59.5]} 2. d4 {[%clk 0:02:59.7]}
2... Bb7 {[%clk 0:03:00.4]} 3. Nc3 {[%clk 0:02:59]} 3... g6 {[%clk 0:03:00.9]}
4. f4 {[%clk 0:02:58.1]} 4... Bg7 {[%clk 0:03:01.8]} 5. Nf3 {[%clk 0:02:57.9]}
5... Nf6 {[%clk 0:02:59.7]} 6. Bd3 {[%clk 0:02:58.1]} 6... d6 {[%clk 0:02:59.1]}
7. O-O {[%clk 0:02:58.2]} 7... O-O {[%clk 0:02:59.3]} 8. e5 {[%clk 0:02:57.7]}
8... Nd5 {[%clk 0:02:52.9]} 9. Nxd5 {[%clk 0:02:56]} 9... Bxd5 {[%clk 0:02:53]}
10. c3 {[%clk 0:02:55.7]} 10... c5 {[%clk 0:02:51.7]} 11. Be3 {[%clk 0:02:54.6]}
11... cxd4 {[%clk 0:02:50.5]} 12. cxd4 {[%clk 0:02:52.4]} 12... Nc6 {[%clk
0:02:50.1]} 13. Rc1 {[%clk 0:02:49.9]} 13... Nb4 {[%clk 0:02:31.4]} 14. Bb1
{[%clk 0:02:48.7]} 14... Bxa2 {[%clk 0:02:17.8]} 15. Bxa2 {[%clk 0:02:20.1]}
15... Nxa2 {[%clk 0:02:15.7]} 16. Rc4 {[%clk 0:02:20.5]} 16... b5 {[%clk
0:02:14.8]} 17. Rc6 {[%clk 0:02:15.9]} 17... Nb4 {[%clk 0:02:13.1]} 18. Rc1
{[%clk 0:02:15]} 18... Nd5 {[%clk 0:02:09.5]} 19. Bd2 {[%clk 0:02:14.2]} 19...
Qb6 {[%clk 0:02:03.4]} 20. Qe2 {[%clk 0:02:10.6]} 20... a5 {[%clk 0:02:00.3]}
21. Qe4 {[%clk 0:02:09.7]} 21... e6 {[%clk 0:01:58]} 22. Ng5 {[%clk 0:02:01.4]}
22... h6 {[%clk 0:01:55.1]} 23. Nf3 {[%clk 0:02:00.1]} 23... Rfc8 {[%clk
0:01:54.7]} 24. Nh4 {[%clk 0:01:55.9]} 24... Rc4 {[%clk 0:01:44.7]} 25. Rxc4
{[%clk 0:01:53.5]} 25... bxc4 {[%clk 0:01:44.5]} 26. f5 {[%clk 0:01:51.9]} 26...
Qxb2 {[%clk 0:01:39]} 27. fxe6 {[%clk 0:01:47.7]} 27... fxe6 {[%clk 0:01:34.5]}
28. Bxh6 {[%clk 0:01:41.7]} 28... dxe5 {[%clk 0:00:21.5]} 29. Qxg6 {[%clk
0:01:37.3]} 29... Qxd4+ {[%clk 0:00:20.8]} 30. Kh1 {[%clk 0:01:33.7]} 30... e4
{[%clk 0:00:21]} 31. Qxe6+ {[%clk 0:01:30.3]} 31... Kh8 {[%clk 0:00:18.7]} 32.
Nf5 {[%clk 0:01:28.7]} 32... Rf8 {[%clk 0:00:05]} 33. Bxg7+ {[%clk 0:01:17]}
33... Qxg7 {[%clk 0:00:04.3]} 34. Qxd5 {[%clk 0:01:15.8]} 34... Qf6 {[%clk
0:00:03]} 35. Qxe4 {[%clk 0:01:13.9]} 35... c3 {[%clk 0:00:03]} 36. Qc2 {[%clk
0:01:09]} 1-0

[Event "Early-Titled-Tuesday-Blitz-January-30-2024"]
[Site "Chess.com"]
[Date "2024.01.30"]
[Round "10"]
[White "AttilaTurzo"]
[Black "Bkmzzzzz"]
[Result "1-0"]
[WhiteElo "2485"]
[BlackElo "2336"]
[TimeControl "180+1"]
[EndTime "10:00:57 PST"]
[Termination "AttilaTurzo won by checkmate"]

1. e4 {[%clk 0:03:00.9]} 1... d6 {[%clk 0:02:55.5]} 2. d4 {[%clk 0:02:57.5]}
2... Nf6 {[%clk 0:02:55.1]} 3. Nc3 {[%clk 0:02:54.9]} 3... e5 {[%clk 0:02:54.5]}
4. Nf3 {[%clk 0:02:13.9]} 4... Nbd7 {[%clk 0:02:53.7]} 5. Bc4 {[%clk 0:02:13.2]}
5... Be7 {[%clk 0:02:51.8]} 6. O-O {[%clk 0:02:12.9]} 6... O-O {[%clk
0:02:51.6]} 7. a4 {[%clk 0:02:13.2]} 7... c6 {[%clk 0:02:51.8]} 8. Re1 {[%clk
0:02:12.7]} 8... b6 {[%clk 0:02:49.9]} 9. d5 {[%clk 0:02:11.3]} 9... cxd5 {[%clk
0:02:49.1]} 10. Nxd5 {[%clk 0:02:10.6]} 10... Nxd5 {[%clk 0:02:48.9]} 11. Bxd5
{[%clk 0:02:10.1]} 11... Rb8 {[%clk 0:02:49.4]} 12. c4 {[%clk 0:02:04.8]} 12...
Nf6 {[%clk 0:02:43.4]} 13. b4 {[%clk 0:02:04.8]} 13... Nxd5 {[%clk 0:02:41.9]}
14. cxd5 {[%clk 0:02:05.1]} 14... f5 {[%clk 0:02:39.1]} 15. Nd2 {[%clk
0:01:59.5]} 15... f4 {[%clk 0:02:36.6]} 16. b5 {[%clk 0:01:57.4]} 16... Qe8
{[%clk 0:02:28.2]} 17. Ba3 {[%clk 0:01:55.7]} 17... Qg6 {[%clk 0:02:26.9]} 18.
Kh1 {[%clk 0:01:53.8]} 18... Bh4 {[%clk 0:02:00]} 19. Rf1 {[%clk 0:01:45.4]}
19... Bg4 {[%clk 0:01:17.6]} 20. f3 {[%clk 0:01:44.2]} 20... Bd7 {[%clk
0:01:17.1]} 21. Re1 {[%clk 0:01:01.7]} 21... Bxe1 {[%clk 0:00:50.6]} 22. Qxe1
{[%clk 0:01:01.6]} 22... Rbc8 {[%clk 0:00:46.1]} 23. Rc1 {[%clk 0:00:51.3]}
23... Rxc1 {[%clk 0:00:45.7]} 24. Qxc1 {[%clk 0:00:52.1]} 24... Rc8 {[%clk
0:00:45.9]} 25. Nc4 {[%clk 0:00:46.5]} 25... Qf6 {[%clk 0:00:20.2]} 26. Qf1
{[%clk 0:00:45.9]} 26... Rxc4 {[%clk 0:00:15]} 27. Qxc4 {[%clk 0:00:45]} 27...
Qd8 {[%clk 0:00:11.7]} 28. Kg1 {[%clk 0:00:39.1]} 28... Be8 {[%clk 0:00:11]} 29.
Qb4 {[%clk 0:00:36.1]} 29... Qc7 {[%clk 0:00:08.2]} 30. Qxd6 {[%clk 0:00:35.7]}
30... Qc2 {[%clk 0:00:08.3]} 31. Qf8# {[%clk 0:00:35.4]} 1-0

[Event "Early-Titled-Tuesday-Blitz-January-30-2024"]
[Site "Chess.com"]
[Date "2024.01.30"]
[Round "10"]
[White "ProChessWICTH"]
[Black "NovakRatko"]
[Result "1-0"]
[WhiteElo "2528"]
[BlackElo "2378"]
[TimeControl "180+1"]
[EndTime "10:01:00 PST"]
[Termination "ProChessWICTH won by checkmate"]

1. e4 {[%clk 0:03:00.9]} 1... d5 {[%clk 0:02:58.9]} 2. exd5 {[%clk 0:03:00.4]}
2... c6 {[%clk 0:02:59.2]} 3. dxc6 {[%clk 0:02:59.8]} 3... Nxc6 {[%clk
0:03:00.1]} 4. Nf3 {[%clk 0:02:59.1]} 4... e5 {[%clk 0:03:00.5]} 5. d3 {[%clk
0:02:58.7]} 5... Bc5 {[%clk 0:03:00.5]} 6. Be2 {[%clk 0:02:56.6]} 6... f5 {[%clk
0:03:00.7]} 7. Nc3 {[%clk 0:02:51.2]} 7... Nf6 {[%clk 0:03:00.7]} 8. O-O {[%clk
0:02:49.8]} 8... O-O {[%clk 0:03:00.7]} 9. a3 {[%clk 0:02:40.8]} 9... a5 {[%clk
0:03:00.3]} 10. Nd2 {[%clk 0:02:27.3]} 10... Nd4 {[%clk 0:02:57.8]} 11. Nc4
{[%clk 0:02:19.4]} 11... Re8 {[%clk 0:02:52.4]} 12. Be3 {[%clk 0:02:02]} 12...
Nxe2+ {[%clk 0:02:04.5]} 13. Qxe2 {[%clk 0:01:49.1]} 13... Bd4 {[%clk 0:01:56]}
14. Nb5 {[%clk 0:01:34.6]} 14... Bd7 {[%clk 0:01:31.5]} 15. a4 {[%clk
0:01:22.1]} 15... Bc6 {[%clk 0:01:18.9]} 16. f3 {[%clk 0:01:18.7]} 16... Qd7
{[%clk 0:01:05.4]} 17. Bxd4 {[%clk 0:00:56.1]} 17... exd4 {[%clk 0:01:04]} 18.
Qf2 {[%clk 0:00:55.5]} 18... Bxb5 {[%clk 0:00:58.2]} 19. axb5 {[%clk 0:00:56.4]}
19... Qxb5 {[%clk 0:00:45.7]} 20. Nd6 {[%clk 0:00:53.5]} 20... Qxb2 {[%clk
0:00:43.7]} 21. Nxe8 {[%clk 0:00:52.7]} 21... Rxe8 {[%clk 0:00:37.3]} 22. Rxa5
{[%clk 0:00:34.3]} 22... Rc8 {[%clk 0:00:36.3]} 23. Rxf5 {[%clk 0:00:31.3]}
23... Rxc2 {[%clk 0:00:34.3]} 24. Qg3 {[%clk 0:00:31.6]} 24... Rc6 {[%clk
0:00:18]} 25. Re1 {[%clk 0:00:20.6]} 25... Rc1 {[%clk 0:00:14.5]} 26. Qb8+
{[%clk 0:00:19.8]} 26... Kf7 {[%clk 0:00:14.4]} 27. Qe8# {[%clk 0:00:20.4]} 1-0

[Event "Early-Titled-Tuesday-Blitz-January-30-2024"]
[Site "Chess.com"]
[Date "2024.01.30"]
[Round "10"]
[White "FGHSMN"]
[Black "Hikaru"]
[Result "0-1"]
[WhiteElo "2914"]
[BlackElo "3280"]
[TimeControl "180+1"]
[EndTime "10:01:03 PST"]
[Termination "Hikaru won by resignation"]

1. d4 {[%clk 0:03:00.9]} 1... g6 {[%clk 0:02:59.6]} 2. c4 {[%clk 0:03:00.1]}
2... Bg7 {[%clk 0:02:59.1]} 3. Nd2 {[%clk 0:02:59.8]} 3... Bxd4 {[%clk
0:02:58.5]} 4. Ngf3 {[%clk 0:02:58.9]} 4... Bg7 {[%clk 0:02:58.3]} 5. g3 {[%clk
0:02:59.4]} 5... Nf6 {[%clk 0:02:56.8]} 6. Bg2 {[%clk 0:03:00]} 6... d5 {[%clk
0:02:57.5]} 7. O-O {[%clk 0:02:58.8]} 7... O-O {[%clk 0:02:57.4]} 8. cxd5 {[%clk
0:02:58.1]} 8... Nxd5 {[%clk 0:02:57]} 9. a3 {[%clk 0:02:57.3]} 9... Nc6 {[%clk
0:02:50.6]} 10. Qc2 {[%clk 0:02:55.3]} 10... e5 {[%clk 0:02:44]} 11. Rd1 {[%clk
0:02:53.4]} 11... Qe7 {[%clk 0:02:44.4]} 12. Ne4 {[%clk 0:02:52.2]} 12... Rd8
{[%clk 0:02:42.7]} 13. b4 {[%clk 0:02:47.4]} 13... Nd4 {[%clk 0:02:36.5]} 14.
Nxd4 {[%clk 0:02:46.8]} 14... exd4 {[%clk 0:02:37.4]} 15. Bb2 {[%clk 0:02:34.7]}
15... Bf5 {[%clk 0:02:28.1]} 16. Qc5 {[%clk 0:02:15]} 16... Qxc5 {[%clk
0:02:00.6]} 17. Nxc5 {[%clk 0:02:15.9]} 17... Nc3 {[%clk 0:02:01]} 18. Rd2
{[%clk 0:02:03.9]} 18... Re8 {[%clk 0:02:01.3]} 19. Bxb7 {[%clk 0:01:55.2]}
19... Nxe2+ {[%clk 0:01:48.6]} 20. Kg2 {[%clk 0:01:50]} 20... Rad8 {[%clk
0:01:48.4]} 21. Bc6 {[%clk 0:01:43]} 21... Re7 {[%clk 0:01:41]} 22. Rad1 {[%clk
0:01:26.9]} 22... Rd6 {[%clk 0:01:33.3]} 23. Bf3 {[%clk 0:01:23.6]} 23... Nc3
{[%clk 0:01:33.5]} 24. Rc1 {[%clk 0:01:09.8]} 24... Bh6 {[%clk 0:01:31.8]} 25.
Rxd4 {[%clk 0:01:00.5]} 25... Bxc1 {[%clk 0:01:21.5]} 26. Bxc3 {[%clk
0:00:59.9]} 26... Rxd4 {[%clk 0:01:21.1]} 27. Bxd4 {[%clk 0:01:00.8]} 27... Bxa3
{[%clk 0:01:21.6]} 28. g4 {[%clk 0:00:47.3]} 28... Bc8 {[%clk 0:01:20.6]} 29.
Ne4 {[%clk 0:00:30.5]} 29... Rxe4 {[%clk 0:01:20.4]} 30. Bxe4 {[%clk 0:00:29.2]}
30... Bxb4 {[%clk 0:01:20.5]} 31. Bxa7 {[%clk 0:00:24.4]} 31... Bxg4 {[%clk
0:01:20]} 32. h3 {[%clk 0:00:23.5]} 32... Be6 {[%clk 0:01:18.1]} 33. f4 {[%clk
0:00:21.4]} 33... Bd6 {[%clk 0:01:16.7]} 34. Be3 {[%clk 0:00:21.9]} 34... c5
{[%clk 0:01:16.8]} 35. h4 {[%clk 0:00:20.6]} 35... h5 {[%clk 0:01:16.5]} 36. Kf3
{[%clk 0:00:21.2]} 36... Be7 {[%clk 0:01:15.4]} 37. Bf2 {[%clk 0:00:21.2]} 37...
c4 {[%clk 0:01:14.9]} 38. Ke2 {[%clk 0:00:19.7]} 38... Bf6 {[%clk 0:01:13.4]}
39. Kd2 {[%clk 0:00:13.9]} 39... Bf5 {[%clk 0:01:11.7]} 40. Bxf5 {[%clk
0:00:11.9]} 40... gxf5 {[%clk 0:01:12]} 41. Ke2 {[%clk 0:00:11]} 41... Kf8
{[%clk 0:01:12.1]} 42. Bc5+ {[%clk 0:00:09.9]} 42... Ke8 {[%clk 0:01:12.5]} 43.
Bf2 {[%clk 0:00:10.6]} 43... Kd7 {[%clk 0:01:12.8]} 44. Kf3 {[%clk 0:00:08.7]}
44... Ke6 {[%clk 0:01:13.3]} 0-1

[Event "Early-Titled-Tuesday-Blitz-January-30-2024"]
[Site "Chess.com"]
[Date "2024.01.30"]
[Round "10"]
[White "ContrVersia"]
[Black "Chernobay_Artem"]
[Result "1-0"]
[WhiteElo "2844"]
[BlackElo "2657"]
[TimeControl "180+1"]
[EndTime "10:01:09 PST"]
[Termination "ContrVersia won by resignation"]

1. Nf3 {[%clk 0:03:00.9]} 1... Nf6 {[%clk 0:02:59.9]} 2. c4 {[%clk 0:03:00.9]}
2... g6 {[%clk 0:02:59.8]} 3. g3 {[%clk 0:03:01.3]} 3... Bg7 {[%clk 0:03:00.4]}
4. Bg2 {[%clk 0:03:01.9]} 4... O-O {[%clk 0:03:01.1]} 5. O-O {[%clk 0:03:02.6]}
5... d6 {[%clk 0:03:01.9]} 6. d4 {[%clk 0:03:03]} 6... c6 {[%clk 0:03:02.7]} 7.
Nc3 {[%clk 0:03:03.3]} 7... Bf5 {[%clk 0:03:03.4]} 8. Ng5 {[%clk 0:03:03.8]}
8... e5 {[%clk 0:02:55.5]} 9. d5 {[%clk 0:03:03.1]} 9... h6 {[%clk 0:02:46]} 10.
e4 {[%clk 0:02:56.8]} 10... Bd7 {[%clk 0:02:21.7]} 11. Nf3 {[%clk 0:02:54.6]}
11... Na6 {[%clk 0:02:19.5]} 12. dxc6 {[%clk 0:02:52.2]} 12... Bxc6 {[%clk
0:02:19.3]} 13. Re1 {[%clk 0:02:49.2]} 13... Nc5 {[%clk 0:02:08.7]} 14. Qc2
{[%clk 0:02:47.3]} 14... Rc8 {[%clk 0:02:08.3]} 15. b4 {[%clk 0:02:35.9]} 15...
Ne6 {[%clk 0:02:05]} 16. Bb2 {[%clk 0:02:32.8]} 16... a5 {[%clk 0:01:53.5]} 17.
a3 {[%clk 0:02:32.3]} 17... Re8 {[%clk 0:01:45.4]} 18. Qb3 {[%clk 0:02:25.5]}
18... axb4 {[%clk 0:01:22.5]} 19. axb4 {[%clk 0:02:24.9]} 19... Qb6 {[%clk
0:01:21.6]} 20. Nd5 {[%clk 0:01:58.8]} 20... Bxd5 {[%clk 0:01:19.1]} 21. exd5
{[%clk 0:01:59.1]} 21... Nc5 {[%clk 0:01:08.6]} 22. Qa3 {[%clk 0:01:58.8]} 22...
Na6 {[%clk 0:01:05.7]} 23. c5 {[%clk 0:01:44.9]} 23... Qxb4 {[%clk 0:01:03.9]}
24. cxd6 {[%clk 0:01:45]} 24... Rcd8 {[%clk 0:00:54.9]} 25. Nxe5 {[%clk
0:01:32.3]} 25... Qxa3 {[%clk 0:00:42.6]} 26. Rxa3 {[%clk 0:01:23.4]} 26... Ng4
{[%clk 0:00:35]} 27. f4 {[%clk 0:01:14.5]} 27... Rxd6 {[%clk 0:00:33.3]} 28. h3
{[%clk 0:01:04.4]} 28... Nf6 {[%clk 0:00:32.2]} 29. Rd1 {[%clk 0:01:04.3]} 29...
Red8 {[%clk 0:00:29.7]} 30. Nc4 {[%clk 0:01:03.5]} 30... R6d7 {[%clk 0:00:21.2]}
31. d6 {[%clk 0:01:03.8]} 31... Ne8 {[%clk 0:00:20.1]} 32. Be5 {[%clk
0:01:03.3]} 32... f6 {[%clk 0:00:15.9]} 33. Ba1 {[%clk 0:00:57.8]} 33... Nxd6
{[%clk 0:00:11.2]} 34. Rad3 {[%clk 0:00:58]} 34... Nxc4 {[%clk 0:00:05.7]} 35.
Rxd7 {[%clk 0:00:56.8]} 35... Rxd7 {[%clk 0:00:06.4]} 36. Rxd7 {[%clk
0:00:56.4]} 36... Nc5 {[%clk 0:00:05.9]} 37. Bd5+ {[%clk 0:00:54.4]} 37... Kf8
{[%clk 0:00:05.2]} 38. Rf7+ {[%clk 0:00:52]} 38... Ke8 {[%clk 0:00:03.8]} 39.
Bxc4 {[%clk 0:00:51.8]} 1-0

[Event "Early-Titled-Tuesday-Blitz-January-30-2024"]
[Site "Chess.com"]
[Date "2024.01.30"]
[Round "10"]
[White "Happy1712Drummer"]
[Black "Manukyan_Artak"]
[Result "0-1"]
[WhiteElo "2419"]
[BlackElo "2596"]
[TimeControl "180+1"]
[EndTime "10:01:09 PST"]
[Termination "Manukyan_Artak won by resignation"]

1. e4 {[%clk 0:03:00.9]} 1... c6 {[%clk 0:02:43.8]} 2. d4 {[%clk 0:02:58.9]}
2... d5 {[%clk 0:02:40.7]} 3. Nc3 {[%clk 0:02:59.3]} 3... dxe4 {[%clk
0:02:37.4]} 4. Nxe4 {[%clk 0:03:00.2]} 4... Nf6 {[%clk 0:02:14.8]} 5. Nxf6+
{[%clk 0:02:58.9]} 5... exf6 {[%clk 0:02:15.3]} 6. Be2 {[%clk 0:02:59.3]} 6...
Bd6 {[%clk 0:02:15.9]} 7. Bf3 {[%clk 0:02:59.8]} 7... O-O {[%clk 0:02:16]} 8.
Ne2 {[%clk 0:03:00.2]} 8... Qc7 {[%clk 0:02:15.9]} 9. c4 {[%clk 0:02:58.7]} 9...
c5 {[%clk 0:02:14.4]} 10. dxc5 {[%clk 0:02:57.1]} 10... Bxc5 {[%clk 0:02:14.5]}
11. O-O {[%clk 0:02:54.7]} 11... Nc6 {[%clk 0:02:14.2]} 12. Bf4 {[%clk
0:02:51.2]} 12... Qd8 {[%clk 0:02:10.9]} 13. a3 {[%clk 0:02:38.8]} 13... a5
{[%clk 0:02:02.4]} 14. Bd5 {[%clk 0:02:24.5]} 14... Ne5 {[%clk 0:01:54.9]} 15.
Nc3 {[%clk 0:02:19]} 15... Bf5 {[%clk 0:01:51.1]} 16. h3 {[%clk 0:02:11.9]}
16... Qd7 {[%clk 0:01:43.1]} 17. Ne4 {[%clk 0:01:47.7]} 17... Bxe4 {[%clk
0:01:39]} 18. Bxe4 {[%clk 0:01:48.1]} 18... Rad8 {[%clk 0:01:32.9]} 19. Qxd7
{[%clk 0:01:44.9]} 19... Rxd7 {[%clk 0:01:33.2]} 20. Bd5 {[%clk 0:01:45.6]}
20... b5 {[%clk 0:01:28]} 21. b3 {[%clk 0:01:41.7]} 21... Ng6 {[%clk 0:01:23.1]}
22. Bd2 {[%clk 0:01:40.4]} 22... a4 {[%clk 0:01:18]} 23. bxa4 {[%clk 0:01:34.5]}
23... bxc4 {[%clk 0:01:17.3]} 24. Bb4 {[%clk 0:01:35.2]} 24... Rxd5 {[%clk
0:01:15.8]} 25. Rfd1 {[%clk 0:01:29.7]} 25... Rxd1+ {[%clk 0:01:12.4]} 26. Rxd1
{[%clk 0:01:30.6]} 26... Rc8 {[%clk 0:01:03.9]} 27. Rc1 {[%clk 0:01:28.5]} 27...
Bd4 {[%clk 0:00:59.4]} 28. a5 {[%clk 0:01:28.3]} 28... Ne5 {[%clk 0:00:58.8]}
29. a6 {[%clk 0:01:28.6]} 29... Nd3 {[%clk 0:00:57.5]} 30. Rc2 {[%clk
0:01:23.2]} 30... Nxf2 {[%clk 0:00:49.4]} 31. Bc3 {[%clk 0:01:04]} 31... Bxc3
{[%clk 0:00:46.9]} 32. Kxf2 {[%clk 0:00:57.7]} 32... Bd4+ {[%clk 0:00:46]} 33.
Kf3 {[%clk 0:00:58.2]} 33... c3 {[%clk 0:00:44]} 34. Ke4 {[%clk 0:00:57.6]}
34... Be5 {[%clk 0:00:44]} 35. Rc1 {[%clk 0:00:34.1]} 35... g5 {[%clk
0:00:38.4]} 36. Kd5 {[%clk 0:00:17.8]} 36... Ra8 {[%clk 0:00:37.2]} 0-1

[Event "Early-Titled-Tuesday-Blitz-January-30-2024"]
[Site "Chess.com"]
[Date "2024.01.30"]
[Round "10"]
[White "FlemingA"]
[Black "LuisFSiles"]
[Result "1-0"]
[WhiteElo "2469"]
[BlackElo "2255"]
[TimeControl "180+1"]
[EndTime "10:01:11 PST"]
[Termination "FlemingA won by resignation"]

1. e4 {[%clk 0:02:54.1]} 1... c5 {[%clk 0:02:59.2]} 2. Nf3 {[%clk 0:02:53.7]}
2... Nc6 {[%clk 0:02:59.5]} 3. Bb5 {[%clk 0:02:53.3]} 3... g6 {[%clk 0:02:59.2]}
4. c3 {[%clk 0:02:52.7]} 4... Nf6 {[%clk 0:02:58.3]} 5. Qe2 {[%clk 0:02:46.4]}
5... Bg7 {[%clk 0:02:53.6]} 6. O-O {[%clk 0:02:44.3]} 6... O-O {[%clk
0:02:52.9]} 7. h3 {[%clk 0:02:44.5]} 7... e5 {[%clk 0:02:34]} 8. a4 {[%clk
0:02:32.9]} 8... Qe7 {[%clk 0:02:22.4]} 9. Na3 {[%clk 0:02:26.9]} 9... d6 {[%clk
0:02:21.7]} 10. Rd1 {[%clk 0:02:21.9]} 10... Bd7 {[%clk 0:02:20.8]} 11. Nc2
{[%clk 0:02:18.8]} 11... Na5 {[%clk 0:02:12.4]} 12. Ra3 {[%clk 0:01:48.9]} 12...
Be6 {[%clk 0:02:06.4]} 13. d4 {[%clk 0:01:44.4]} 13... exd4 {[%clk 0:01:48.9]}
14. cxd4 {[%clk 0:01:41.3]} 14... Bb3 {[%clk 0:01:42.5]} 15. e5 {[%clk
0:01:33.7]} 15... Nd5 {[%clk 0:01:34.5]} 16. dxc5 {[%clk 0:00:45.1]} 16... dxc5
{[%clk 0:01:27.4]} 17. Qd2 {[%clk 0:00:19.1]} 17... Nb4 {[%clk 0:01:19.8]} 18.
Rxb3 {[%clk 0:00:02.4]} 18... Nxb3 {[%clk 0:01:17.7]} 19. Qe2 {[%clk 0:00:03.1]}
19... Nxc2 {[%clk 0:01:12.1]} 20. Qxc2 {[%clk 0:00:04]} 20... Nxc1 {[%clk
0:01:12.4]} 21. Rxc1 {[%clk 0:00:04]} 21... b6 {[%clk 0:00:59.7]} 22. Re1 {[%clk
0:00:03.5]} 22... Rad8 {[%clk 0:00:57]} 23. Bc4 {[%clk 0:00:03.5]} 23... Kh8
{[%clk 0:00:53.5]} 24. b3 {[%clk 0:00:04]} 24... Qd7 {[%clk 0:00:46]} 25. Qe4
{[%clk 0:00:03]} 25... Rfe8 {[%clk 0:00:42.2]} 26. Qh4 {[%clk 0:00:03.1]} 26...
Qe7 {[%clk 0:00:38.3]} 27. Ng5 {[%clk 0:00:03.5]} 27... h6 {[%clk 0:00:33.5]}
28. Nxf7+ {[%clk 0:00:03.5]} 28... Kh7 {[%clk 0:00:34]} 29. Qxe7 {[%clk
0:00:01.9]} 29... Rxe7 {[%clk 0:00:30.9]} 30. Nxd8 {[%clk 0:00:02.8]} 1-0

[Event "Early-Titled-Tuesday-Blitz-January-30-2024"]
[Site "Chess.com"]
[Date "2024.01.30"]
[Round "10"]
[White "hmatyi07"]
[Black "Horokoskii"]
[Result "0-1"]
[WhiteElo "2200"]
[BlackElo "2163"]
[TimeControl "180+1"]
[EndTime "10:01:11 PST"]
[Termination "Horokoskii won by resignation"]

1. e4 {[%clk 0:03:00.9]} 1... e6 {[%clk 0:02:54.2]} 2. d4 {[%clk 0:03:00.2]}
2... d5 {[%clk 0:02:54.4]} 3. exd5 {[%clk 0:02:59.4]} 3... exd5 {[%clk
0:02:54.9]} 4. Nf3 {[%clk 0:02:59.5]} 4... Bd6 {[%clk 0:02:55.4]} 5. c4 {[%clk
0:02:58.2]} 5... dxc4 {[%clk 0:02:55.1]} 6. Bxc4 {[%clk 0:02:58.1]} 6... Nf6
{[%clk 0:02:54.7]} 7. O-O {[%clk 0:02:55.5]} 7... O-O {[%clk 0:02:52.8]} 8. Bg5
{[%clk 0:02:54.4]} 8... h6 {[%clk 0:02:53.1]} 9. Bh4 {[%clk 0:02:54.4]} 9... Be7
{[%clk 0:02:52.7]} 10. Nc3 {[%clk 0:02:50.9]} 10... Bg4 {[%clk 0:02:51]} 11. Re1
{[%clk 0:02:44.7]} 11... Nbd7 {[%clk 0:02:50.2]} 12. Rc1 {[%clk 0:02:27]} 12...
Nb6 {[%clk 0:02:48.2]} 13. Bb3 {[%clk 0:02:24.4]} 13... c6 {[%clk 0:02:47.7]}
14. Qe2 {[%clk 0:02:14.6]} 14... Re8 {[%clk 0:02:44.8]} 15. Bxf7+ {[%clk
0:02:00.2]} 15... Kxf7 {[%clk 0:02:41.8]} 16. Ne5+ {[%clk 0:01:59.8]} 16... Kf8
{[%clk 0:02:40.2]} 17. Nxg4 {[%clk 0:01:56.5]} 17... Nxg4 {[%clk 0:02:39.2]} 18.
Bxe7+ {[%clk 0:01:27]} 18... Qxe7 {[%clk 0:02:38.7]} 19. Qf3+ {[%clk 0:01:27.4]}
19... Qf6 {[%clk 0:02:37.8]} 20. Qxg4 {[%clk 0:01:26.6]} 20... Kg8 {[%clk
0:02:31.5]} 21. h3 {[%clk 0:01:18.8]} 21... Rad8 {[%clk 0:02:29.8]} 22. Ne4
{[%clk 0:00:55]} 22... Qxd4 {[%clk 0:02:19.6]} 23. Rcd1 {[%clk 0:00:52]} 23...
Qxb2 {[%clk 0:02:09.6]} 24. Rxd8 {[%clk 0:00:45.4]} 24... Rxd8 {[%clk
0:02:10.5]} 25. Qe6+ {[%clk 0:00:44.9]} 25... Kh8 {[%clk 0:02:07.8]} 26. Nd6
{[%clk 0:00:41.8]} 26... Rf8 {[%clk 0:01:52.9]} 27. Nf7+ {[%clk 0:00:40.5]}
27... Kh7 {[%clk 0:01:52.4]} 28. Qe7 {[%clk 0:00:21]} 28... Kg8 {[%clk
0:01:44.5]} 29. Qe6 {[%clk 0:00:17.2]} 29... Rxf7 {[%clk 0:01:42.8]} 30. Qe8+
{[%clk 0:00:16.7]} 30... Rf8 {[%clk 0:01:41.5]} 31. Qe6+ {[%clk 0:00:16.6]}
31... Kh8 {[%clk 0:01:41.5]} 32. Qe7 {[%clk 0:00:16]} 32... Qxf2+ {[%clk
0:01:40.9]} 33. Kh1 {[%clk 0:00:15.3]} 33... Nd5 {[%clk 0:01:39.1]} 34. Qe5
{[%clk 0:00:13.7]} 34... Nf4 {[%clk 0:01:33.2]} 35. Rg1 {[%clk 0:00:10.1]} 35...
Ne2 {[%clk 0:01:29.4]} 36. Rb1 {[%clk 0:00:07.7]} 36... Ng3+ {[%clk 0:01:26.4]}
37. Kh2 {[%clk 0:00:08.1]} 37... Nf1+ {[%clk 0:01:22.9]} 38. Kh1 {[%clk
0:00:08.2]} 38... Ne3 {[%clk 0:01:21.5]} 39. Rg1 {[%clk 0:00:08.3]} 39... Qf4
{[%clk 0:01:12.5]} 40. Qe7 {[%clk 0:00:07.6]} 40... Nf1 {[%clk 0:01:07.7]} 41.
g4 {[%clk 0:00:03.4]} 41... Qf3+ {[%clk 0:01:02.9]} 42. Rg2 {[%clk 0:00:02.6]}
42... Ne3 {[%clk 0:01:02.7]} 43. Qe4 {[%clk 0:00:01.2]} 43... Qxe4 {[%clk
0:01:01.8]} 0-1